[Event "Titled Tuesday Blitz June 28 Late 2022"]
[White "Maksimovic, Bojan"]
[Black "Manukian, Artak"]
[WhiteFideId "14408120"]
[BlackFideId "13301373"]
[WhiteElo "2756"]
[BlackElo "2468"]
[Result "1-0"]
[Round "06"]
[TimeControl "180+1"]
[Date "2022.06.29"]
[WhiteClock "0:00:10"]
[BlackClock "0:00:03"]

1. Nf3 {[%clk 0:03:00]}  d5 {[%clk 0:02:58]} 2. g3 {[%clk 0:03:01]}  Nf6 {[%clk 0:02:58]} 3. Bg2 {[%clk 0:03:01]}  g6 {[%clk 0:02:58]} 4. O-O {[%clk 0:03:02]}  Bg7 {[%clk 0:02:59]} 5. d3 {[%clk 0:03:03]}  O-O {[%clk 0:02:59]} 6. Nbd2 {[%clk 0:03:04]}  c5 {[%clk 0:02:59]} 7. e4 {[%clk 0:03:05]}  Nc6 {[%clk 0:03:00]} 8. Re1 {[%clk 0:03:06]}  d4 {[%clk 0:03:00]} 9. a4 {[%clk 0:02:36]}  e5 {[%clk 0:02:26]} 10. Nc4 {[%clk 0:02:35]}  Qc7 {[%clk 0:02:15]} 11. h3 {[%clk 0:02:30]}  Nd7 {[%clk 0:02:02]} 12. b3 {[%clk 0:02:14]}  Nb6 {[%clk 0:01:57]} 13. h4 {[%clk 0:01:56]}  Nxc4 {[%clk 0:01:55]} 14. bxc4 {[%clk 0:01:55]}  Nb4 {[%clk 0:01:53]} 15. h5 {[%clk 0:01:50]}  Bg4 {[%clk 0:01:51]} 16. h6 {[%clk 0:01:49]}  Bf6 {[%clk 0:01:50]} 17. Qd2 {[%clk 0:01:44]}  Bd8 {[%clk 0:01:35]} 18. Nh2 {[%clk 0:01:41]}  Bd7 {[%clk 0:01:34]} 19. a5 {[%clk 0:01:36]}  Nc6 {[%clk 0:01:10]} 20. a6 {[%clk 0:01:34]}  b6 {[%clk 0:01:05]} 21. f4 {[%clk 0:01:35]}  f6 {[%clk 0:01:00]} 22. Rf1 {[%clk 0:01:33]}  Qd6 {[%clk 0:00:58]} 23. Qe2 {[%clk 0:01:28]}  Nb4 {[%clk 0:00:57]} 24. Bf3 {[%clk 0:00:44]}  Bc7 {[%clk 0:00:42]} 25. Bg4 {[%clk 0:00:43]}  Rae8 {[%clk 0:00:32]} 26. Bxd7 {[%clk 0:00:32]}  Qxd7 {[%clk 0:00:33]} 27. f5 {[%clk 0:00:32]}  g5 {[%clk 0:00:32]} 28. Ng4 {[%clk 0:00:33]}  Kf7 {[%clk 0:00:28]} 29. Qd1 {[%clk 0:00:32]}  Ke7 {[%clk 0:00:27]} 30. Bd2 {[%clk 0:00:32]}  Nc6 {[%clk 0:00:22]} 31. Qc1 {[%clk 0:00:30]}  Kd6 {[%clk 0:00:19]} 32. Kg2 {[%clk 0:00:27]}  Qf7 {[%clk 0:00:19]} 33. Rh1 {[%clk 0:00:26]}  Kd7 {[%clk 0:00:18]} 34. c3 {[%clk 0:00:21]}  dxc3 {[%clk 0:00:18]} 35. Bxc3 {[%clk 0:00:22]}  Nd4 {[%clk 0:00:18]} 36. Qb2 {[%clk 0:00:17]}  Kc8 {[%clk 0:00:17]} 37. Ne3 {[%clk 0:00:17]}  Bb8 {[%clk 0:00:14]} 38. g4 {[%clk 0:00:15]}  Qd7 {[%clk 0:00:12]} 39. Nd5 {[%clk 0:00:15]}  Qc6 {[%clk 0:00:12]} 40. Rhb1 {[%clk 0:00:10]}  Bc7 {[%clk 0:00:12]} 41. Kf2 {[%clk 0:00:08]}  Kd7 {[%clk 0:00:11]} 42. Bxd4 {[%clk 0:00:04]}  exd4 {[%clk 0:00:10]} 43. Qb5 {[%clk 0:00:05]}  Qxb5 {[%clk 0:00:10]} 44. cxb5 {[%clk 0:00:03]}  Be5 {[%clk 0:00:09]} 45. Ke2 {[%clk 0:00:03]}  Rc8 {[%clk 0:00:09]} 46. Rc1 {[%clk 0:00:03]}  c4 {[%clk 0:00:08]} 47. dxc4 {[%clk 0:00:02]}  d3+ {[%clk 0:00:08]} 48. Kxd3 {[%clk 0:00:03]}  Bxa1 {[%clk 0:00:08]} 49. Rxa1 {[%clk 0:00:04]}  Kd6 {[%clk 0:00:08]} 50. Kd4 {[%clk 0:00:04]}  Rf7 {[%clk 0:00:08]} 51. Nxf6 {[%clk 0:00:04]}  Rxf6 {[%clk 0:00:04]} 52. e5+ {[%clk 0:00:04]}  Ke7 {[%clk 0:00:05]} 53. exf6+ {[%clk 0:00:05]}  Kxf6 {[%clk 0:00:05]} 54. Re1 {[%clk 0:00:06]}  Rd8+ {[%clk 0:00:05]} 55. Kc3 {[%clk 0:00:06]}  Rd6 {[%clk 0:00:04]} 56. c5 {[%clk 0:00:07]}  bxc5 {[%clk 0:00:04]} 57. Kc4 {[%clk 0:00:08]}  Rd4+ {[%clk 0:00:04]} 58. Kxc5 {[%clk 0:00:08]}  Rxg4 {[%clk 0:00:05]} 59. Ra1 {[%clk 0:00:07]}  Re4 {[%clk 0:00:03]} 60. b6 {[%clk 0:00:07]}  axb6+ {[%clk 0:00:03]} 61. Kxb6 {[%clk 0:00:07]}  Kxf5 {[%clk 0:00:02]} 62. a7 {[%clk 0:00:07]}  Re8 {[%clk 0:00:03]} 63. a8=Q {[%clk 0:00:06]}  Rxa8 {[%clk 0:00:03]} 64. Rxa8 {[%clk 0:00:07]}  g4 {[%clk 0:00:04]} 65. Kc5 {[%clk 0:00:07]}  Kg5 {[%clk 0:00:03]} 66. Kd4 {[%clk 0:00:07]}  Kxh6 {[%clk 0:00:03]} 67. Ke3 {[%clk 0:00:08]}  Kg5 {[%clk 0:00:04]} 68. Kf2 {[%clk 0:00:09]}  h5 {[%clk 0:00:05]} 69. Ra5+ {[%clk 0:00:09]}  Kh4 {[%clk 0:00:04]} 70. Kg2 {[%clk 0:00:09]}  g3 {[%clk 0:00:03]} 71. Ra4+ {[%clk 0:00:10]} 1-0


[Site "https://www.chess.com"]

[Event "Titled Tuesday Blitz June 28 Late 2022"]
[White "Mangialardo, Tiago Carvalho"]
[Black "Fernandez Hernandez, Gerardo"]
[WhiteFideId "2130718"]
[BlackFideId "2207400"]
[WhiteElo "2062"]
[BlackElo "2231"]
[Result "0-1"]
[Round "06"]
[TimeControl "180+1"]
[Date "2022.06.29"]
[WhiteClock "0:00:17"]
[BlackClock "0:01:49"]

1. e4 {[%clk 0:03:00]}  c5 {[%clk 0:02:59]} 2. Nf3 {[%clk 0:03:00]}  Nc6 {[%clk 0:02:59]} 3. d4 {[%clk 0:03:01]}  cxd4 {[%clk 0:03:00]} 4. Nxd4 {[%clk 0:03:02]}  e5 {[%clk 0:02:59]} 5. Nf3 {[%clk 0:03:00]}  Nf6 {[%clk 0:02:58]} 6. Nc3 {[%clk 0:03:00]}  Bb4 {[%clk 0:02:57]} 7. Bd3 {[%clk 0:03:00]}  Bxc3+ {[%clk 0:02:57]} 8. bxc3 {[%clk 0:03:01]}  O-O {[%clk 0:02:51]} 9. O-O {[%clk 0:03:00]}  d5 {[%clk 0:02:51]} 10. Bg5 {[%clk 0:02:48]}  Be6 {[%clk 0:02:50]} 11. exd5 {[%clk 0:02:24]}  Bxd5 {[%clk 0:02:48]} 12. Re1 {[%clk 0:02:21]}  h6 {[%clk 0:02:45]} 13. Bxf6 {[%clk 0:02:12]}  Qxf6 {[%clk 0:02:46]} 14. Be4 {[%clk 0:02:03]}  Bxe4 {[%clk 0:02:42]} 15. Rxe4 {[%clk 0:02:04]}  Rad8 {[%clk 0:02:36]} 16. Qe2 {[%clk 0:02:01]}  Rfe8 {[%clk 0:02:36]} 17. h3 {[%clk 0:01:58]}  Qd6 {[%clk 0:02:34]} 18. Re1 {[%clk 0:01:27]}  f5 {[%clk 0:02:32]} 19. Ra4 {[%clk 0:01:18]}  e4 {[%clk 0:02:31]} 20. Nd4 {[%clk 0:01:18]}  Nxd4 {[%clk 0:02:29]} 21. cxd4 {[%clk 0:00:50]}  Qb6 {[%clk 0:02:26]} 22. Qc4+ {[%clk 0:00:45]}  Kh8 {[%clk 0:02:23]} 23. Qb3 {[%clk 0:00:44]}  Qxb3 {[%clk 0:02:03]} 24. axb3 {[%clk 0:00:45]}  a6 {[%clk 0:02:02]} 25. c4 {[%clk 0:00:33]}  Rxd4 {[%clk 0:02:01]} 26. Kf1 {[%clk 0:00:29]}  f4 {[%clk 0:01:55]} 27. Rc1 {[%clk 0:00:23]}  e3 {[%clk 0:01:54]} 28. Rc2 {[%clk 0:00:17]}  e2+ {[%clk 0:01:49]} 0-1


[Site "https://www.chess.com"]

[Event "Titled Tuesday Blitz June 28 Late 2022"]
[White "Nilsson, Joakim"]
[Black "Samsonkin, Artiom"]
[WhiteFideId "1723383"]
[BlackFideId "13503111"]
[WhiteElo "2210"]
[BlackElo "2513"]
[Result "1-0"]
[Round "06"]
[TimeControl "180+1"]
[Date "2022.06.29"]
[WhiteClock "0:00:14"]
[BlackClock "0:00:04"]

1. d4 {[%clk 0:03:00]}  d5 {[%clk 0:02:57]} 2. Bf4 {[%clk 0:02:55]}  Nf6 {[%clk 0:02:52]} 3. e3 {[%clk 0:02:55]}  c5 {[%clk 0:02:43]} 4. Nc3 {[%clk 0:02:54]}  Nc6 {[%clk 0:02:43]} 5. Nb5 {[%clk 0:02:54]}  g5 {[%clk 0:01:48]} 6. Bg3 {[%clk 0:02:47]}  e5 {[%clk 0:01:30]} 7. dxe5 {[%clk 0:02:47]}  Ne4 {[%clk 0:01:26]} 8. Qxd5 {[%clk 0:02:40]}  Qa5+ {[%clk 0:01:02]} 9. c3 {[%clk 0:02:40]}  Nxg3 {[%clk 0:01:01]} 10. hxg3 {[%clk 0:02:37]}  Be6 {[%clk 0:01:01]} 11. Qe4 {[%clk 0:02:33]}  O-O-O {[%clk 0:00:56]} 12. Nf3 {[%clk 0:02:31]}  Be7 {[%clk 0:00:41]} 13. Nd6+ {[%clk 0:02:19]}  Bxd6 {[%clk 0:00:31]} 14. exd6 {[%clk 0:02:20]}  Rxd6 {[%clk 0:00:29]} 15. Nxg5 {[%clk 0:02:16]}  Rhd8 {[%clk 0:00:26]} 16. Nxe6 {[%clk 0:02:13]}  Rxe6 {[%clk 0:00:21]} 17. Qg4 {[%clk 0:02:09]}  f5 {[%clk 0:00:13]} 18. Qxf5 {[%clk 0:02:06]}  Nd4 {[%clk 0:00:12]} 19. Qxh7 {[%clk 0:01:44]}  Rde8 {[%clk 0:00:04]} 20. Bc4 {[%clk 0:01:09]}  R6e7 {[%clk 0:00:02]} 21. Qh3+ {[%clk 0:01:06]}  Kb8 {[%clk 0:00:03]} 22. O-O {[%clk 0:01:04]}  Nc6 {[%clk 0:00:03]} 23. Rfd1 {[%clk 0:01:01]}  Qc7 {[%clk 0:00:04]} 24. Bb5 {[%clk 0:01:00]}  Rh7 {[%clk 0:00:03]} 25. Qg4 {[%clk 0:00:57]}  Reh8 {[%clk 0:00:04]} 26. Kf1 {[%clk 0:00:56]}  Ne5 {[%clk 0:00:04]} 27. Qf4 {[%clk 0:00:54]}  a6 {[%clk 0:00:03]} 28. Ba4 {[%clk 0:00:49]}  Rf7 {[%clk 0:00:03]} 29. Qe4 {[%clk 0:00:37]}  Rhf8 {[%clk 0:00:04]} 30. f4 {[%clk 0:00:32]}  Ng4 {[%clk 0:00:04]} 31. Re1 {[%clk 0:00:18]}  Re7 {[%clk 0:00:04]} 32. Qd3 {[%clk 0:00:17]}  Rd8 {[%clk 0:00:03]} 33. Qc2 {[%clk 0:00:14]}  Nxe3+ {[%clk 0:00:02]} 34. Rxe3 {[%clk 0:00:14]}  Rxe3 {[%clk 0:00:03]} 35. Re1 {[%clk 0:00:14]}  Rh8 {[%clk 0:00:04]} 36. Rxe3 {[%clk 0:00:13]}  Qb6 {[%clk 0:00:03]} 37. Kf2 {[%clk 0:00:13]}  c4 {[%clk 0:00:02]} 38. Qe4 {[%clk 0:00:13]}  Rd8 {[%clk 0:00:03]} 39. Qe5+ {[%clk 0:00:13]}  Ka7 {[%clk 0:00:02]} 40. Kf3 {[%clk 0:00:14]}  Qxb2 {[%clk 0:00:02]} 41. Qe4 {[%clk 0:00:14]}  Rd2 {[%clk 0:00:03]} 42. Qxc4 {[%clk 0:00:13]}  Rf2+ {[%clk 0:00:03]} 43. Kg4 {[%clk 0:00:13]}  Rxg2 {[%clk 0:00:04]} 44. Qd4+ {[%clk 0:00:13]}  Qb6 {[%clk 0:00:02]} 45. Qxb6+ {[%clk 0:00:13]}  Kxb6 {[%clk 0:00:03]} 46. Bb3 {[%clk 0:00:13]}  a5 {[%clk 0:00:03]} 47. Bc4 {[%clk 0:00:13]}  Kc5 {[%clk 0:00:03]} 48. Be6 {[%clk 0:00:13]}  b5 {[%clk 0:00:04]} 49. f5 {[%clk 0:00:13]}  Rc2 {[%clk 0:00:04]} 50. f6 {[%clk 0:00:14]}  Kd6 {[%clk 0:00:03]} 51. f7 {[%clk 0:00:14]}  Ke7 {[%clk 0:00:04]} 52. Bd5+ {[%clk 0:00:14]} 1-0


[Site "https://www.chess.com"]

[Event "Titled Tuesday Blitz June 28 Late 2022"]
[White "Ozates, Tuna"]
[Black "Arnold, Ken"]
[WhiteFideId "6354521"]
[BlackFideId "2056836"]
[WhiteElo "1887"]
[BlackElo "2274"]
[Result "1-0"]
[Round "06"]
[TimeControl "180+1"]
[Date "2022.06.29"]
[WhiteClock "0:00:08"]
[BlackClock "0:00:01"]

1. c4 {[%clk 0:03:00]}  Nf6 {[%clk 0:02:59]} 2. Nc3 {[%clk 0:03:00]}  e6 {[%clk 0:02:58]} 3. d4 {[%clk 0:02:59]}  Bb4 {[%clk 0:02:55]} 4. e3 {[%clk 0:02:56]}  b6 {[%clk 0:02:51]} 5. Ne2 {[%clk 0:02:55]}  Bb7 {[%clk 0:02:49]} 6. a3 {[%clk 0:02:55]}  Be7 {[%clk 0:02:48]} 7. f3 {[%clk 0:02:50]}  c5 {[%clk 0:02:45]} 8. d5 {[%clk 0:02:50]}  d6 {[%clk 0:02:41]} 9. e4 {[%clk 0:02:49]}  O-O {[%clk 0:02:39]} 10. Nf4 {[%clk 0:02:49]}  exd5 {[%clk 0:02:37]} 11. Nfxd5 {[%clk 0:02:44]}  Nc6 {[%clk 0:02:31]} 12. Bd3 {[%clk 0:02:36]}  Nd4 {[%clk 0:02:26]} 13. O-O {[%clk 0:02:35]}  Nxd5 {[%clk 0:02:25]} 14. exd5 {[%clk 0:02:33]}  Bf6 {[%clk 0:02:13]} 15. Ne4 {[%clk 0:02:30]}  g6 {[%clk 0:02:09]} 16. Rb1 {[%clk 0:02:27]}  Re8 {[%clk 0:02:07]} 17. Bf4 {[%clk 0:02:25]}  Be5 {[%clk 0:02:06]} 18. Qd2 {[%clk 0:02:24]}  Nb3 {[%clk 0:01:52]} 19. Qd1 {[%clk 0:02:02]}  Bxf4 {[%clk 0:01:49]} 20. Qxb3 {[%clk 0:02:01]}  f5 {[%clk 0:01:46]} 21. Nc3 {[%clk 0:01:58]}  Re3 {[%clk 0:01:32]} 22. Qc2 {[%clk 0:01:55]}  Qg5 {[%clk 0:01:17]} 23. Rbe1 {[%clk 0:01:45]}  Rae8 {[%clk 0:01:16]} 24. Rxe3 {[%clk 0:01:44]}  Bxe3+ {[%clk 0:01:15]} 25. Kh1 {[%clk 0:01:43]}  Bd4 {[%clk 0:00:56]} 26. Nb5 {[%clk 0:01:37]}  Qf6 {[%clk 0:00:53]} 27. b4 {[%clk 0:01:23]}  a6 {[%clk 0:00:50]} 28. Nxd4 {[%clk 0:00:53]}  Qxd4 {[%clk 0:00:49]} 29. Rd1 {[%clk 0:00:54]}  Qe3 {[%clk 0:00:45]} 30. bxc5 {[%clk 0:00:49]}  bxc5 {[%clk 0:00:44]} 31. h3 {[%clk 0:00:46]}  Bc8 {[%clk 0:00:40]} 32. Qb2 {[%clk 0:00:36]}  f4 {[%clk 0:00:28]} 33. Qf6 {[%clk 0:00:28]}  Bxh3 {[%clk 0:00:26]} 34. Qxd6 {[%clk 0:00:21]}  Qf2 {[%clk 0:00:19]} 35. Bf1 {[%clk 0:00:13]}  Bf5 {[%clk 0:00:16]} 36. Qxf4 {[%clk 0:00:12]}  Re1 {[%clk 0:00:15]} 37. Qb8+ {[%clk 0:00:09]}  Kg7 {[%clk 0:00:15]} 38. Rxe1 {[%clk 0:00:09]}  Qxe1 {[%clk 0:00:14]} 39. Qb2+ {[%clk 0:00:10]}  Kh6 {[%clk 0:00:13]} 40. Qe2 {[%clk 0:00:11]}  Qh4+ {[%clk 0:00:08]} 41. Kg1 {[%clk 0:00:09]}  Qd4+ {[%clk 0:00:08]} 42. Qf2 {[%clk 0:00:10]}  Qa1 {[%clk 0:00:07]} 43. Qxc5 {[%clk 0:00:09]}  Kg5 {[%clk 0:00:06]} 44. Qe3+ {[%clk 0:00:10]}  Kf6 {[%clk 0:00:06]} 45. d6 {[%clk 0:00:10]}  Qe5 {[%clk 0:00:03]} 46. Qxe5+ {[%clk 0:00:09]}  Kxe5 {[%clk 0:00:04]} 47. c5 {[%clk 0:00:10]}  Kd5 {[%clk 0:00:04]} 48. Bxa6 {[%clk 0:00:09]}  Kxc5 {[%clk 0:00:05]} 49. Bd3 {[%clk 0:00:08]}  Bd7 {[%clk 0:00:03]} 50. Kf2 {[%clk 0:00:07]}  Kxd6 {[%clk 0:00:03]} 51. Ke3 {[%clk 0:00:08]}  Ke5 {[%clk 0:00:03]} 52. Be4 {[%clk 0:00:08]}  Be8 {[%clk 0:00:01]} 53. f4+ {[%clk 0:00:08]} 1-0


[Site "https://www.chess.com"]

[Event "Titled Tuesday Blitz June 28 Late 2022"]
[White "Paravyan, David"]
[Black "Bayo Milagro, Alvaro"]
[WhiteFideId "4194985"]
[BlackFideId "22275240"]
[WhiteElo "2569"]
[BlackElo "2270"]
[Result "1-0"]
[Round "06"]
[TimeControl "180+1"]
[Date "2022.06.28"]
[WhiteClock "0:01:22"]
[BlackClock "0:00:07"]

1. e4 {[%clk 0:02:58]}  e5 {[%clk 0:02:53]} 2. Nf3 {[%clk 0:02:56]}  Nc6 {[%clk 0:02:53]} 3. Nc3 {[%clk 0:02:55]}  Nf6 {[%clk 0:02:53]} 4. d4 {[%clk 0:02:56]}  exd4 {[%clk 0:02:53]} 5. Nxd4 {[%clk 0:02:56]}  Bb4 {[%clk 0:02:53]} 6. Nxc6 {[%clk 0:02:57]}  bxc6 {[%clk 0:02:54]} 7. Bd3 {[%clk 0:02:58]}  O-O {[%clk 0:02:53]} 8. O-O {[%clk 0:02:58]}  d5 {[%clk 0:02:53]} 9. exd5 {[%clk 0:02:59]}  cxd5 {[%clk 0:02:54]} 10. Bg5 {[%clk 0:02:59]}  c6 {[%clk 0:02:54]} 11. Qf3 {[%clk 0:03:00]}  Bd6 {[%clk 0:02:52]} 12. Rae1 {[%clk 0:02:59]}  Rb8 {[%clk 0:02:50]} 13. Nd1 {[%clk 0:02:59]}  h6 {[%clk 0:02:43]} 14. Bxf6 {[%clk 0:02:59]}  Qxf6 {[%clk 0:02:43]} 15. Qxf6 {[%clk 0:02:59]}  gxf6 {[%clk 0:02:44]} 16. b3 {[%clk 0:03:00]}  f5 {[%clk 0:02:44]} 17. Ne3 {[%clk 0:02:59]}  f4 {[%clk 0:02:44]} 18. Nf5 {[%clk 0:03:00]}  Bxf5 {[%clk 0:02:43]} 19. Bxf5 {[%clk 0:03:01]}  Rbd8 {[%clk 0:02:32]} 20. Rd1 {[%clk 0:02:54]}  Kg7 {[%clk 0:02:30]} 21. Rd3 {[%clk 0:02:51]}  Kf6 {[%clk 0:02:30]} 22. Bg4 {[%clk 0:02:51]}  Bb4 {[%clk 0:02:13]} 23. Rfd1 {[%clk 0:02:50]}  Rfe8 {[%clk 0:02:12]} 24. Kf1 {[%clk 0:02:50]}  d4 {[%clk 0:02:08]} 25. Rh3 {[%clk 0:02:46]}  Kg5 {[%clk 0:02:01]} 26. Bf3 {[%clk 0:02:46]}  d3 {[%clk 0:01:48]} 27. cxd3 {[%clk 0:02:25]}  Rxd3 {[%clk 0:01:46]} 28. Rc1 {[%clk 0:02:26]}  Rc3 {[%clk 0:01:38]} 29. Rxc3 {[%clk 0:02:23]}  Bxc3 {[%clk 0:01:38]} 30. Be2 {[%clk 0:02:16]}  Bd4 {[%clk 0:01:23]} 31. Rh5+ {[%clk 0:02:15]}  Kg6 {[%clk 0:01:23]} 32. Bf3 {[%clk 0:02:16]}  Bc3 {[%clk 0:01:14]} 33. g3 {[%clk 0:02:12]}  fxg3 {[%clk 0:01:14]} 34. hxg3 {[%clk 0:02:13]}  Bd4 {[%clk 0:00:47]} 35. Ra5 {[%clk 0:02:12]}  Bb6 {[%clk 0:00:42]} 36. Ra4 {[%clk 0:02:11]}  Rd8 {[%clk 0:00:38]} 37. Rg4+ {[%clk 0:02:11]}  Kf6 {[%clk 0:00:35]} 38. Rf4+ {[%clk 0:02:05]}  Kg7 {[%clk 0:00:34]} 39. Bxc6 {[%clk 0:02:00]}  Rd1+ {[%clk 0:00:31]} 40. Ke2 {[%clk 0:01:58]}  Rc1 {[%clk 0:00:28]} 41. Bd5 {[%clk 0:01:58]}  Rc2+ {[%clk 0:00:27]} 42. Kf1 {[%clk 0:01:59]}  Rxa2 {[%clk 0:00:25]} 43. Rxf7+ {[%clk 0:01:58]}  Kg6 {[%clk 0:00:25]} 44. Rf4 {[%clk 0:01:58]}  Rd2 {[%clk 0:00:24]} 45. Be4+ {[%clk 0:01:56]}  Kg7 {[%clk 0:00:21]} 46. Rg4+ {[%clk 0:01:53]}  Kf6 {[%clk 0:00:19]} 47. Rf4+ {[%clk 0:01:54]}  Kg7 {[%clk 0:00:20]} 48. Kg2 {[%clk 0:01:48]}  Rd4 {[%clk 0:00:20]} 49. Rg4+ {[%clk 0:01:40]}  Kf6 {[%clk 0:00:17]} 50. f3 {[%clk 0:01:38]}  Rd2+ {[%clk 0:00:14]} 51. Kh3 {[%clk 0:01:38]}  Bg1 {[%clk 0:00:12]} 52. Rg6+ {[%clk 0:01:38]}  Kf7 {[%clk 0:00:12]} 53. Kg4 {[%clk 0:01:33]}  Rh2 {[%clk 0:00:11]} 54. Rc6 {[%clk 0:01:32]}  h5+ {[%clk 0:00:12]} 55. Kf5 {[%clk 0:01:32]}  Rb2 {[%clk 0:00:10]} 56. Rc7+ {[%clk 0:01:32]}  Ke8 {[%clk 0:00:10]} 57. Ke6 {[%clk 0:01:31]}  Kd8 {[%clk 0:00:10]} 58. Rd7+ {[%clk 0:01:23]}  Kc8 {[%clk 0:00:10]} 59. Bb7+ {[%clk 0:01:24]}  Kb8 {[%clk 0:00:11]} 60. Ba6 {[%clk 0:01:19]}  Rxb3 {[%clk 0:00:09]} 61. Rd8+ {[%clk 0:01:19]}  Kc7 {[%clk 0:00:09]} 62. Rc8+ {[%clk 0:01:20]}  Kb6 {[%clk 0:00:08]} 63. Rb8+ {[%clk 0:01:21]}  Kxa6 {[%clk 0:00:09]} 64. Rxb3 {[%clk 0:01:22]}  Bf2 {[%clk 0:00:07]} 65. f4 {[%clk 0:01:22]} 1-0


[Site "https://www.chess.com"]

[Event "Titled Tuesday Blitz June 28 Late 2022"]
[White "Petersson, Kjell"]
[Black "Silvestre, Christian"]
[WhiteFideId "1705148"]
[BlackFideId "30956269"]
[WhiteElo "2009"]
[BlackElo "2349"]
[Result "0-1"]
[Round "06"]
[TimeControl "180+1"]
[Date "2022.06.29"]
[WhiteClock "0:00:07"]
[BlackClock "0:00:14"]

1. d4 {[%clk 0:03:00]}  Nf6 {[%clk 0:02:54]} 2. Bf4 {[%clk 0:03:01]}  c5 {[%clk 0:02:42]} 3. d5 {[%clk 0:03:00]}  d6 {[%clk 0:02:40]} 4. Nc3 {[%clk 0:02:59]}  Qb6 {[%clk 0:02:39]} 5. e4 {[%clk 0:02:57]}  Qxb2 {[%clk 0:02:37]} 6. Bd2 {[%clk 0:02:57]}  Qb6 {[%clk 0:02:35]} 7. f4 {[%clk 0:02:55]}  Bg4 {[%clk 0:02:32]} 8. Nf3 {[%clk 0:02:50]}  Nbd7 {[%clk 0:02:30]} 9. h3 {[%clk 0:02:42]}  Bxf3 {[%clk 0:02:29]} 10. Qxf3 {[%clk 0:02:42]}  g6 {[%clk 0:02:29]} 11. Bc4 {[%clk 0:02:33]}  Bg7 {[%clk 0:02:29]} 12. O-O {[%clk 0:02:29]}  O-O {[%clk 0:02:26]} 13. Rab1 {[%clk 0:02:10]}  Qc7 {[%clk 0:02:25]} 14. Rfe1 {[%clk 0:02:04]}  a6 {[%clk 0:02:24]} 15. a4 {[%clk 0:02:03]}  Rab8 {[%clk 0:02:23]} 16. Qg3 {[%clk 0:01:51]}  Rfe8 {[%clk 0:02:17]} 17. f5 {[%clk 0:01:26]}  Ne5 {[%clk 0:02:14]} 18. Be2 {[%clk 0:01:21]}  c4 {[%clk 0:02:09]} 19. fxg6 {[%clk 0:01:19]}  hxg6 {[%clk 0:02:07]} 20. h4 {[%clk 0:01:18]}  b5 {[%clk 0:01:56]} 21. axb5 {[%clk 0:01:18]}  axb5 {[%clk 0:01:56]} 22. Nxb5 {[%clk 0:01:15]}  Qc5+ {[%clk 0:01:42]} 23. Be3 {[%clk 0:01:15]}  Nxe4 {[%clk 0:01:30]} 24. Qf4 {[%clk 0:01:02]}  Qxd5 {[%clk 0:01:27]} 25. Nc7 {[%clk 0:00:57]}  Qc6 {[%clk 0:01:21]} 26. Nxe8 {[%clk 0:00:56]}  Rxe8 {[%clk 0:01:20]} 27. Bf3 {[%clk 0:00:52]}  d5 {[%clk 0:01:18]} 28. Rb6 {[%clk 0:00:47]}  Qa8 {[%clk 0:01:08]} 29. h5 {[%clk 0:00:40]}  Nxf3+ {[%clk 0:01:01]} 30. Qxf3 {[%clk 0:00:39]}  Qa5 {[%clk 0:00:50]} 31. Rf1 {[%clk 0:00:38]}  Rf8 {[%clk 0:00:45]} 32. hxg6 {[%clk 0:00:37]}  fxg6 {[%clk 0:00:45]} 33. Qd1 {[%clk 0:00:34]}  Rxf1+ {[%clk 0:00:36]} 34. Qxf1 {[%clk 0:00:35]}  d4 {[%clk 0:00:33]} 35. Rb8+ {[%clk 0:00:34]}  Kh7 {[%clk 0:00:32]} 36. Bf4 {[%clk 0:00:30]}  Qd5 {[%clk 0:00:20]} 37. Re8 {[%clk 0:00:27]}  d3 {[%clk 0:00:19]} 38. cxd3 {[%clk 0:00:26]}  cxd3 {[%clk 0:00:19]} 39. Rxe7 {[%clk 0:00:27]}  Qc5+ {[%clk 0:00:19]} 40. Kh1 {[%clk 0:00:25]}  Qxe7 {[%clk 0:00:19]} 41. Qe1 {[%clk 0:00:21]}  d2 {[%clk 0:00:18]} 42. Qf1 {[%clk 0:00:17]}  Qh4+ {[%clk 0:00:17]} 43. Bh2 {[%clk 0:00:16]}  Ng3+ {[%clk 0:00:15]} 44. Kg1 {[%clk 0:00:17]}  Nh5 {[%clk 0:00:14]} 45. Qd1 {[%clk 0:00:15]}  Qd4+ {[%clk 0:00:13]} 46. Kh1 {[%clk 0:00:14]}  Bh6 {[%clk 0:00:13]} 47. Bb8 {[%clk 0:00:10]}  Ng7 {[%clk 0:00:13]} 48. Bh2 {[%clk 0:00:08]}  Nf5 {[%clk 0:00:14]} 49. Bb8 {[%clk 0:00:07]}  Ne3 {[%clk 0:00:14]} 0-1


[Site "https://www.chess.com"]

[Event "Titled Tuesday Blitz June 28 Late 2022"]
[White "Preotu, Razvan"]
[Black "Bortnyk, Mykola"]
[WhiteFideId "2613280"]
[BlackFideId "14120836"]
[WhiteElo "2407"]
[BlackElo "2582"]
[Result "0-1"]
[Round "06"]
[TimeControl "180+1"]
[Date "2022.06.28"]
[WhiteClock "0:00:33"]
[BlackClock "0:01:24"]

1. e4 {[%clk 0:03:00]}  e5 {[%clk 0:03:00]} 2. Nf3 {[%clk 0:02:59]}  d6 {[%clk 0:03:00]} 3. d4 {[%clk 0:02:58]}  exd4 {[%clk 0:03:01]} 4. Nxd4 {[%clk 0:02:59]}  Nf6 {[%clk 0:03:01]} 5. Nc3 {[%clk 0:02:59]}  Be7 {[%clk 0:03:02]} 6. Bf4 {[%clk 0:02:59]}  O-O {[%clk 0:03:02]} 7. Qd2 {[%clk 0:02:58]}  d5 {[%clk 0:03:02]} 8. O-O-O {[%clk 0:02:55]}  Bb4 {[%clk 0:03:03]} 9. Ndb5 {[%clk 0:02:54]}  c6 {[%clk 0:03:03]} 10. Qd4 {[%clk 0:02:49]}  c5 {[%clk 0:02:47]} 11. Qd3 {[%clk 0:02:31]}  d4 {[%clk 0:02:22]} 12. a3 {[%clk 0:01:35]}  Bxc3 {[%clk 0:02:00]} 13. Nxc3 {[%clk 0:01:34]}  Nc6 {[%clk 0:01:54]} 14. e5 {[%clk 0:00:49]}  Nh5 {[%clk 0:01:49]} 15. Qf3 {[%clk 0:00:48]}  Qh4 {[%clk 0:01:26]} 16. Bg3 {[%clk 0:00:33]}  Qg5+ {[%clk 0:01:24]} 0-1


[Site "https://www.chess.com"]